fUSD/lending_fUSD_20240203
["ID","MTS","AMOUNT","RATE_DAILY","PERIOD"]
[313216488,1706963446376,-500.0,0.00022884,2]
[313216489,1706963446385,-500.0,0.00022884,2]
[313216490,1706963446395,-500.0,0.00022885,2]
[313216491,1706963446404,-768.32,0.00022885,2]
[313216492,1706963446413,-500.0,0.00022885,2]
[313216493,1706963446422,-500.0,0.00022885,2]
[313216494,1706963446432,-500.0,0.00022885,2]
[313216495,1706963446441,-500.0,0.00022885,2]
[313216496,1706963446451,-500.0,0.00022885,2]
[313216497,1706963446461,-322.33742488,0.00022885,2]
[313216498,1706963446472,-177.66257512,0.00022885,2]
[313216499,1706963446481,-1211.38,0.00022885,2]
[313216500,1706963446491,-500.0,0.00022885,2]
[313216501,1706963446500,-500.0,0.00022885,2]
[313216502,1706963446509,-154.15383449,0.00022885,2]
[313216503,1706963446520,-345.84616551,0.00022885,2]
[313216504,1706963446533,-500.0,0.00022885,2]
[313216505,1706963446542,-500.0,0.00022885,2]
[313216506,1706963446551,-500.0,0.00022885,2]
[313216507,1706963446561,-500.0,0.00022885,2]
[313216509,1706963446701,-500.0,0.00022885,2]
[313216510,1706963446711,-520.73,0.00022885,2]
[313216511,1706963446720,-500.0,0.00022885,2]
[313216512,1706963446729,-913.76,0.00022885,2]
[313216513,1706963446738,-735.63,0.00022885,2]
[313216514,1706963446748,-800.15,0.00022885,2]
[313216515,1706963446757,-500.0,0.00022885,2]
[313216516,1706963446767,-500.0,0.00022885,2]
[313216517,1706963446776,-500.0,0.00022885,2]
[313216518,1706963446786,-500.0,0.00022885,2]
[313216519,1706963446795,-2141.79,0.00022885,2]
[313216520,1706963446803,-500.0,0.00022885,2]
[313216521,1706963446812,-703.73,0.00022885,2]
[313216522,1706963446821,-2129.3015611,0.00022886,2]
[313216523,1706963446835,-2129.3015611,0.00022886,2]
[313216524,1706963446844,-2129.3015611,0.00022886,2]
[313216525,1706963446853,-2129.3015611,0.00022886,2]
[313216526,1706963446863,-2129.3015611,0.00022886,2]
[313216527,1706963446872,-2129.3015611,0.00022886,2]
[313216528,1706963446882,-2129.3015611,0.00022886,2]
[313216529,1706963446891,-2129.3015611,0.00022886,2]
[313216530,1706963446901,-2129.3015611,0.00022886,2]
[313216531,1706963446910,-2129.3015611,0.00022886,2]
[313216532,1706963446919,-2129.3015611,0.00022886,2]
[313216533,1706963446929,-2129.3015611,0.00022886,2]
[313216534,1706963446938,-2129.3015611,0.00022886,2]
[313216535,1706963446948,-2129.3015611,0.00022886,2]
[313216536,1706963446957,-487.2384,0.00022886,2]
[313216537,1706963446966,-2129.3015611,0.00022887,2]
[313216538,1706963446976,-2129.3015611,0.00022887,2]
[313216539,1706963446985,-2129.3015611,0.00022887,2]
[313216540,1706963446995,-2129.3015611,0.00022887,2]
[313216541,1706963447004,-2129.3015611,0.00022887,2]
[313216542,1706963447013,-2129.3015611,0.00022887,2]
[313216543,1706963447023,-2129.3015611,0.00022887,2]
[313216544,1706963447032,-890.65536923,0.00022887,2]
[313216545,1706963447045,-584.99795,0.00022887,2]
[313216546,1706963447057,-653.64824187,0.00022887,2]
[313216547,1706963447067,-10.97568012,0.00022887,2]
[313216548,1706963447079,-2118.32588098,0.00022887,2]
[313216549,1706963447089,-1699.38256097,0.00022887,2]
[313216550,1706963447101,-429.91900013,0.00022887,2]
[313216551,1706963447110,-2129.3015611,0.00022887,2]
[313216552,1706963447120,-2129.3015611,0.00022887,2]
[313216553,1706963447129,-2129.3015611,0.00022887,2]
[313216554,1706963447138,-2129.3015611,0.00022887,2]
[313216555,1706963447148,-2129.3015611,0.00022887,2]
[313216556,1706963447158,-2129.3015611,0.00022887,2]
[313216557,1706963447169,-2129.3015611,0.00022887,2]
[313216558,1706963447179,-2129.3015611,0.00022887,2]
[313216559,1706963447189,-568.03867738,0.00022887,2]
[313216560,1706963451388,448.00121735,0.00020368,2]
[313216561,1706963469345,448.00121735,0.00020368,2]
[313216562,1706963493346,448.00121735,0.00020366,2]
[313216563,1706963509341,448.00121735,0.00020366,2]
[313216564,1706963527988,267.42491095,0.00020366,2]
[313216565,1706963580801,940.86,0.00021929,2]
[313216566,1706963620331,211.20816243,0.000229,6]
[313216567,1706963622355,200.0,0.00021917,2]
[313216568,1706963625518,211.20816241,0.00022919,6]
[313216569,1706963630489,211.20816241,0.00022939,6]
[313216570,1706963635282,211.20816241,0.00022958,6]
[313216571,1706963636814,372.66,0.00021917,2]
[313216572,1706963640434,211.20816241,0.00022977,6]
[313216573,1706963649674,750.0,0.00021917,2]
[313216574,1706963667018,439.0,0.00023,11]
[313216575,1706963719806,555.48,0.00021895,2]
[313216576,1706963744890,181.35,0.00021901,2]
[313216577,1706963786820,200.0,0.0002189,2]
[313216578,1706963803360,189.18,0.00021891,2]
[313216579,1706963846473,150.06,0.0001997,2]
[313216580,1706963904001,250.0,0.00021868,2]
[313216581,1706963915815,156.87,0.00022029,2]
[313216582,1706964093897,207.0,0.00022171,2]
[313216583,1706964135981,150.0,0.0002162,2]
[313216584,1706964136148,150.0,0.0002228,2]
[313216585,1706964180457,555.61,0.00021852,2]
[313216586,1706964206801,310.55,0.00021834,2]
[313216587,1706964248390,2250.0,0.00022,3]
[313216588,1706964253557,4166.67623224,0.00021999,2]
[313216589,1706964283128,150.06,0.00019903,2]
[313216590,1706964336944,168.21,0.00021833,2]
[313216591,1706964488191,187.0,0.00021264,2]
[313216592,1706964601926,555.51,0.00021852,2]
[313216593,1706964610370,500.0,0.000219,2]
[313216606,1706964631468,-294.88375833,0.00022545,2]
[313216609,1706964631480,-559.23359333,0.00022545,2]
[313216615,1706964631529,-1533.74625532,0.00022545,2]
[313216617,1706964631538,-3410.75834347,0.00022616,2]
[313216620,1706964631586,-1164.27468268,0.00022616,2]
[313216621,1706964631596,-727.31,0.00022618,2]
[313216622,1706964631605,-719.7,0.00022632,2]
[313216623,1706964631614,-721.25,0.00022648,2]
[313216624,1706964631624,-150.0,0.00022652,2]
[313216625,1706964631633,-151.04894075,0.00022652,2]
[313216626,1706964631694,-148.95105925,0.00022652,2]
[313216627,1706964631703,-719.46,0.00022653,2]
[313216628,1706964631712,-722.24,0.00022656,2]
[313216629,1706964631722,-737.31,0.00022656,2]
[313216630,1706964631733,-727.12,0.00022656,2]
[313216631,1706964631743,-712.36,0.00022656,2]
[313216632,1706964631752,-722.1,0.00022656,2]
[313216634,1706964631761,-735.75,0.00022656,2]
[313216636,1706964631770,-730.16,0.00022656,2]
[313216639,1706964631780,-727.26,0.00022656,2]
[313216642,1706964631789,-2156.3,0.00022685,2]
[313216644,1706964631797,-4348.7671121,0.00022685,2]
[313216669,1706964637483,-716.637915,0.00022685,2]
[313216670,1706964637516,-967.55077338,0.00022685,2]
[313216671,1706964637571,-11049.80814694,0.00022685,2]
[313216672,1706964637586,-3662.97605258,0.00022685,2]
[313216673,1706964637595,-417.94,0.00022685,2]
[313216674,1706964637604,-1535.38,0.00022685,2]
[313216675,1706964637615,-570.17,0.00022685,2]
[313216676,1706964637624,-408.2,0.00022685,2]
[313216677,1706964637634,-623.41806488,0.00022685,2]
[313216678,1706964637682,-376.57193512,0.00022685,2]
[313216679,1706964637692,-200.0,0.00022701,2]
[313216680,1706964637702,-370.29,0.00022736,2]
[313216681,1706964637711,-3398.11,0.00022736,2]
[313216682,1706964637721,-3804.73263599,0.00022765,2]
[313216683,1706964637732,-1496.45993775,0.00022774,2]
[313216684,1706964637743,-718.282144,0.00022774,2]
[313216685,1706964637752,-718.282144,0.00022774,2]
[313216686,1706964637762,-718.282144,0.00022774,2]
[313216687,1706964637771,-718.282144,0.00022774,2]
[313216688,1706964637781,-718.282144,0.00022774,2]
[313216689,1706964637791,-718.282144,0.00022774,2]
[313216690,1706964637801,-718.282144,0.00022774,2]
[313216691,1706964637810,-718.282144,0.00022774,2]
[313216692,1706964637821,-718.282144,0.00022774,2]
[313216693,1706964637831,-718.282144,0.00022774,2]
[313216694,1706964637840,-718.282144,0.00022774,2]
[313216695,1706964637850,-718.282144,0.00022774,2]
[313216696,1706964637859,-718.282144,0.00022774,2]
[313216698,1706964637869,-718.282144,0.00022774,2]
[313216700,1706964637878,-718.282144,0.00022774,2]
[313216701,1706964637887,-718.282144,0.00022774,2]
[313216704,1706964637897,-718.282144,0.00022774,2]
[313216706,1706964637907,-718.282144,0.00022774,2]
[313216708,1706964637916,-718.282144,0.00022774,2]
[313216710,1706964637927,-718.282144,0.00022774,2]
[313216711,1706964637937,-718.282144,0.00022774,2]
[313216714,1706964637947,-718.282144,0.00022774,2]
[313216716,1706964637956,-718.282144,0.00022774,2]
[313216717,1706964637966,-718.282144,0.00022774,2]
[313216720,1706964637975,-718.282144,0.00022774,2]
[313216721,1706964637985,-718.282144,0.00022774,2]
[313216723,1706964637994,-718.282144,0.00022774,2]
[313216725,1706964638003,-718.282144,0.00022774,2]
[313216728,1706964638013,-718.282144,0.00022774,2]
[313216730,1706964638022,-718.282144,0.00022774,2]
[313216731,1706964638031,-718.282144,0.00022774,2]
[313216733,1706964638040,-718.282144,0.00022774,2]
[313216735,1706964638050,-718.282144,0.00022774,2]
[313216738,1706964638059,-718.282144,0.00022775,2]
[313216739,1706964638069,-718.282144,0.00022775,2]
[313216741,1706964638079,-718.282144,0.00022775,2]
[313216743,1706964638088,-718.282144,0.00022775,2]
[313216745,1706964638097,-718.282144,0.00022775,2]
[313216748,1706964638107,-718.282144,0.00022775,2]
[313216750,1706964638117,-718.282144,0.00022775,2]
[313216752,1706964638126,-718.282144,0.00022775,2]
[313216754,1706964638136,-718.282144,0.00022775,2]
[313216756,1706964638144,-718.282144,0.00022775,2]
[313216758,1706964638153,-718.282144,0.00022775,2]
[313216759,1706964638163,-718.282144,0.00022775,2]
[313216762,1706964638173,-718.282144,0.00022775,2]
[313216764,1706964638183,-718.282144,0.00022775,2]
[313216765,1706964638192,-718.282144,0.00022775,2]
[313216767,1706964638201,-718.282144,0.00022775,2]
[313216769,1706964638210,-718.282144,0.00022775,2]
[313216771,1706964638220,-718.282144,0.00022775,2]
[313216774,1706964638232,-718.282144,0.00022775,2]
[313216776,1706964638242,-718.282144,0.00022775,2]
[313216778,1706964638251,-718.282144,0.00022775,2]
[313216780,1706964638260,-718.282144,0.00022775,2]
[313216782,1706964638269,-718.282144,0.00022775,2]
[313216784,1706964638278,-718.282144,0.00022775,2]
[313216785,1706964638287,-718.282144,0.00022775,2]
[313216788,1706964638297,-718.282144,0.00022775,2]
[313216789,1706964638306,-718.282144,0.00022775,2]
[313216792,1706964638317,-718.282144,0.00022775,2]
[313216794,1706964638326,-718.282144,0.00022775,2]
[313216795,1706964638336,-718.282144,0.00022775,2]
[313216798,1706964638348,-718.282144,0.00022775,2]
[313216800,1706964638358,-718.282144,0.00022775,2]
[313216802,1706964638369,-718.282144,0.00022775,2]
[313216804,1706964638378,-718.282144,0.00022775,2]
[313216806,1706964638387,-718.282144,0.00022775,2]
[313216807,1706964638396,-718.282144,0.00022775,2]
[313216810,1706964638407,-718.282144,0.00022775,2]
[313216812,1706964638415,-718.282144,0.00022775,2]
[313216813,1706964638425,-718.282144,0.00022775,2]
[313216815,1706964638434,-718.282144,0.00022775,2]
[313216817,1706964638443,-718.282144,0.00022775,2]
[313216819,1706964638452,-718.282144,0.00022775,2]
[313216821,1706964638461,-718.282144,0.00022775,2]
[313216823,1706964638470,-718.282144,0.00022775,2]
[313216825,1706964638480,-170.73118032,0.00022775,2]
[313216828,1706964638492,-547.55096368,0.00022775,2]
[313216830,1706964638501,-718.282144,0.00022775,2]
[313216832,1706964638511,-718.282144,0.00022775,2]
[313216834,1706964638520,-718.282144,0.00022775,2]
[313216836,1706964638528,-718.282144,0.00022775,2]
[313216838,1706964638538,-718.282144,0.00022775,2]
[313216840,1706964638547,-718.282144,0.00022775,2]
[313216842,1706964638555,-718.282144,0.00022775,2]
[313216844,1706964638565,-718.282144,0.00022775,2]
[313216846,1706964638574,-718.282144,0.00022775,2]
[313216847,1706964638583,-718.282144,0.00022775,2]
[313216850,1706964638592,-718.282144,0.00022775,2]
[313216852,1706964638602,-718.282144,0.00022775,2]
[313216853,1706964638611,-718.282144,0.00022775,2]
[313216855,1706964638621,-718.282144,0.00022775,2]
[313216857,1706964638630,-718.282144,0.00022775,2]
[313216859,1706964638639,-718.282144,0.00022775,2]
[313216861,1706964638647,-718.282144,0.00022775,2]
[313216863,1706964638657,-718.282144,0.00022775,2]
[313216865,1706964638665,-718.282144,0.00022775,2]
[313216868,1706964638675,-718.282144,0.00022775,2]
[313216870,1706964638684,-718.282144,0.00022775,2]
[313216872,1706964638693,-718.282144,0.00022775,2]
[313216874,1706964638701,-500.0,0.00022784,2]
[313216876,1706964638710,-500.0,0.00022784,2]
[313216878,1706964638719,-631.36785991,0.00022784,2]
[313216879,1706964638729,-500.0,0.00022784,2]
[313216882,1706964638741,-500.0,0.00022784,2]
[313216883,1706964638751,-500.0,0.00022784,2]
[313216885,1706964638760,-411.47,0.00022784,2]
[313216888,1706964638769,-500.0,0.00022784,2]
[313216889,1706964638779,-500.0,0.00022784,2]
[313216891,1706964638788,-500.0,0.00022784,2]
[313216894,1706964638797,-271.67261378,0.00022784,2]
[313216896,1706964638810,-228.32738622,0.00022784,2]
[313216898,1706964638819,-635.41,0.00022784,2]
[313216900,1706964638828,-522.44333619,0.00022784,2]
[313216902,1706964638837,-1580.13645326,0.00022784,2]
[313216904,1706964638850,-399.13216622,0.00022784,2]
[313216906,1706964638862,-15.56138052,0.00022784,2]
[313216908,1706964638871,-500.0,0.00022784,2]
[313216910,1706964638880,-500.0,0.00022784,2]
[313216912,1706964638889,-500.0,0.00022784,2]
[313216914,1706964638899,-500.0,0.00022784,2]
[313216916,1706964638909,-136.76674601,0.00022784,2]
[313216919,1706964638920,-649.51325399,0.00022784,2]
[313216921,1706964638930,-500.0,0.00022784,2]
[313216923,1706964638939,-232.3404297,0.00022784,2]
[313216925,1706964638950,-500.0,0.00022784,2]
[313216927,1706964638959,-500.0,0.00022784,2]
[313216929,1706964638968,-500.0,0.00022784,2]
[313216931,1706964638978,-500.0,0.00022784,2]
[313216933,1706964638987,-500.0,0.00022784,2]
[313216935,1706964638996,-218.02424997,0.00022784,2]
[313216937,1706964639007,-281.97575003,0.00022784,2]
[313216939,1706964639016,-500.0,0.00022784,2]
[313216941,1706964639025,-500.0,0.00022784,2]
[313216943,1706964639035,-526.99910483,0.00022784,2]
[313216946,1706964639045,-606.90103443,0.00022784,2]
[313216948,1706964639054,-500.0,0.00022784,2]
[313216950,1706964639062,-500.0,0.00022784,2]
[313216963,1706964639172,-279.99555119,0.00022784,2]
[313216965,1706964639182,-500.0,0.00022784,2]
[313216968,1706964639191,-500.0,0.00022784,2]
[313216971,1706964639200,-1191.51,0.00022784,2]
[313216973,1706964639209,-1584.77,0.00022784,2]
[313216976,1706964639218,-650.3,0.00022784,2]
[313216979,1706964639227,-191.82435531,0.00022784,2]
[313216982,1706964639236,-500.0,0.00022784,2]
[313216985,1706964639245,-500.0,0.00022784,2]
[313216988,1706964639254,-649.59420166,0.00022784,2]
[313216991,1706964639263,-258.38511931,0.00022784,2]
[313216995,1706964639275,-595.89488069,0.00022784,2]
[313216998,1706964639285,-500.0,0.00022784,2]
[313217001,1706964639294,-500.0,0.00022784,2]
[313217004,1706964639303,-2944.70511931,0.00022784,2]
[313217007,1706964639314,-999.54407,0.00022784,2]
[313217011,1706964639324,-992.28,0.00022784,2]
[313217014,1706964639335,-999.3042,0.00022784,2]
[313217019,1706964639354,-3315.36661069,0.00022784,2]
[313217022,1706964639363,-500.0,0.00022784,2]
[313217025,1706964639372,-500.0,0.00022784,2]
[313217027,1706964639381,-500.0,0.00022784,2]
[313217029,1706964639390,-500.0,0.00022784,2]
[313217031,1706964639399,-500.0,0.00022784,2]
[313217033,1706964639407,-500.0,0.00022784,2]
[313217035,1706964639416,-500.0,0.00022784,2]
[313217037,1706964639426,-1098.65,0.00022784,2]
[313217039,1706964639435,-500.0,0.00022784,2]
[313217041,1706964639444,-761.38,0.00022784,2]
[313217043,1706964639454,-475.24438931,0.00022784,2]
[313217046,1706964639479,-297.96891414,0.00022784,2]
[313217049,1706964639495,-997.77669655,0.00022784,2]
[313217051,1706964639504,-500.0,0.00022784,2]
[313217053,1706964639513,-500.0,0.00022784,2]
[313217055,1706964639521,-500.0,0.00022784,2]
[313217057,1706964639531,-500.0,0.00022784,2]
[313217059,1706964639540,-500.0,0.00022784,2]
[313217061,1706964639549,-500.0,0.00022784,2]
[313217063,1706964639558,-500.0,0.00022784,2]
[313217065,1706964639567,-500.0,0.00022784,2]
[313217067,1706964639576,-614.37,0.00022784,2]
[313217069,1706964639585,-500.0,0.00022784,2]
[313217071,1706964639594,-500.0,0.00022784,2]
[313217073,1706964639603,-500.0,0.00022784,2]
[313217075,1706964639612,-500.0,0.00022784,2]
[313217077,1706964639621,-500.0,0.00022784,2]
[313217079,1706964639631,-327.49890345,0.00022784,2]
[313217195,1706964640718,-172.50109655,0.00022784,2]
[313217197,1706964640727,-567.16,0.00022784,2]
[313217199,1706964640738,-500.0,0.00022784,2]
[313217201,1706964640747,-500.0,0.00022784,2]
[313217203,1706964640756,-500.0,0.00022784,2]
[313217205,1706964640765,-500.0,0.00022784,2]
[313217207,1706964640774,-832.63,0.00022784,2]
[313217209,1706964640784,-188.97794084,0.00022784,2]
[313217215,1706964640832,-311.02205916,0.00022784,2]
[313217217,1706964640842,-500.0,0.00022784,2]
[313217219,1706964640851,-500.0,0.00022784,2]
[313217221,1706964640860,-500.0,0.00022784,2]
[313217223,1706964640869,-318.31346058,0.00022784,2]
[313217225,1706964640880,-181.68653942,0.00022784,2]
[313217227,1706964640889,-500.0,0.00022784,2]
[313217229,1706964640898,-239.08557412,0.00022784,2]
[313217231,1706964640909,-390.05539884,0.00022784,2]
[313217233,1706964640919,-500.0,0.00022784,2]
[313217235,1706964640928,-500.0,0.00022784,2]
[313217237,1706964640937,-500.0,0.00022784,2]
[313217239,1706964640947,-661.68,0.00022784,2]
[313217241,1706964640956,-1160.9,0.00022784,2]
[313217243,1706964640965,-710.66460116,0.00022784,2]
[313217246,1706964640976,-8204.43989874,0.00022784,2]
[313217248,1706964640987,-367.0355001,0.00022784,2]
[313217250,1706964640997,-612.88,0.00022784,2]
[313217252,1706964641006,-500.0,0.00022784,2]
[313217254,1706964641015,-500.0,0.00022784,2]
[313217256,1706964641024,-500.0,0.00022784,2]
[313217258,1706964641033,-500.0,0.00022784,2]
[313217260,1706964641042,-500.0,0.00022784,2]
[313217262,1706964641052,-500.0,0.00022784,2]
[313217264,1706964641061,-766.81,0.00022784,2]
[313217266,1706964641070,-500.0,0.00022784,2]
[313217268,1706964641079,-1343.23,0.00022784,2]
[313217270,1706964641087,-529.71,0.00022784,2]
[313217272,1706964641097,-500.0,0.00022784,2]
[313217274,1706964641105,-500.0,0.00022784,2]
[313217276,1706964641115,-500.0,0.00022784,2]
[313217278,1706964641124,-500.0,0.00022784,2]
[313217280,1706964641133,-2112.35,0.00022784,2]
[313217282,1706964641142,-500.0,0.00022784,2]
[313217284,1706964641152,-500.0,0.00022784,2]
[313217286,1706964641161,-500.0,0.00022784,2]
[313217288,1706964641170,-1635.95,0.00022784,2]
[313217290,1706964641183,-875.69,0.00022784,2]
[313217292,1706964641192,-500.0,0.00022784,2]
[313217294,1706964641201,-5.52733087,0.00022784,2]
[313217297,1706964641228,-361.04,0.00022784,2]
[313217299,1706964641240,-133.43266913,0.00022784,2]
[313217301,1706964641249,-1109.71213704,0.00022784,2]
[313217435,1706964642470,-365.0,0.00022784,2]
[313217442,1706964642527,-363.3463005,0.00022784,2]
[313217444,1706964642539,-251.9428799,0.00022784,2]
[313217445,1706964642637,-267.60868256,0.00022784,2]
[313217446,1706964642646,-1145.40936277,0.00022784,2]
[313217450,1706964642695,-907.14063723,0.00022784,2]
[313217451,1706964642705,-704.98,0.00022784,2]
[313217452,1706964642714,-500.0,0.00022784,2]
[313217453,1706964642724,-500.0,0.00022784,2]
[313217454,1706964642734,-500.0,0.00022784,2]
[313217455,1706964642743,-500.0,0.00022784,2]
[313217456,1706964642753,-500.0,0.00022784,2]
[313217458,1706964642762,-500.0,0.00022784,2]
[313217459,1706964642772,-500.0,0.00022784,2]
[313217460,1706964642782,-500.0,0.00022784,2]
[313217461,1706964642791,-500.0,0.00022784,2]
[313217462,1706964642801,-500.0,0.00022784,2]
[313217463,1706964642812,-500.0,0.00022784,2]
[313217464,1706964642822,-500.0,0.00022784,2]
[313217465,1706964642831,-500.0,0.00022784,2]
[313217466,1706964642841,-57.33520833,0.00022784,2]
[313217467,1706964642852,-442.66479167,0.00022784,2]
[313217468,1706964642862,-1911.72,0.00022784,2]
[313217470,1706964642871,-500.0,0.00022784,2]
[313217471,1706964642882,-1093.00816132,0.00022785,2]
[313217474,1706964642897,-714.48987099,0.00022785,2]
[313217477,1706964645511,-707.74103951,0.00022765,2]
[313217478,1706964645568,-169.18406138,0.00022765,2]
[313217479,1706964645577,-876.92510089,0.00022774,2]
[313217480,1706964645586,-876.92510089,0.00022774,2]
[313217481,1706964645606,-876.92510089,0.00022775,2]
[313217482,1706964645617,-876.92510089,0.00022775,2]
[313217483,1706964645628,-653.58,0.00022784,2]
[313217484,1706964645639,-47140.51939366,0.00022785,2]
[313217485,1706964645736,-196051.98257403,0.00022785,2]
[313217486,1706964645747,-2932.52,0.000228,2]
[313217487,1706964645759,-1556.94680624,0.00022881,2]
[313217488,1706964645769,-17669.0478333,0.00022881,2]
[313217489,1706964645782,-2835.85021802,0.00022881,2]
[313217490,1706964645798,-4354.634448,0.00022881,2]
[313217492,1706964661395,4146.74204382,0.00020595,5]
[313217493,1706964680158,400.0,0.000223,8]
[313217494,1706964682432,800.0,0.000224,8]
[313217495,1706964684524,1300.0,0.000225,8]
[313217496,1706964686614,1700.0,0.000226,8]
[313217497,1706964688754,2200.0,0.000227,8]
[313217498,1706964690837,400.0,0.000228,8]
[313217499,1706964693979,400.0,0.000229,8]
[313217503,1706964753986,156.87,0.00022033,2]
[313217504,1706964755943,152.19,0.00019952,2]
[313217505,1706964772846,778.24,0.00021863,2]
[313217506,1706964798647,318.48,0.00021845,2]
[313217507,1706964819536,27229.78801274,0.00022196,2]
[313217508,1706964828403,172.18,0.00021835,2]
[313217509,1706965028616,555.59,0.00021799,2]
[313217510,1706965058032,181.35,0.00021799,2]
[313217511,1706965100544,150.0,0.00022488,2]
[313217512,1706965149526,7113.78211833,0.00022196,2]
[313217513,1706965210997,500.0,0.000219,2]
[313217514,1706965213154,265.4,0.00021808,2]
[313217515,1706965222236,1068.66059282,0.0002249,2]
[313217516,1706965238249,152.19,0.00019896,2]
[313217517,1706965248272,168.21,0.00021833,2]
[313217518,1706965455751,425.0,0.00023,11]
[313217519,1706965479379,355.68910591,0.00022196,2]
[313217520,1706965519957,555.52,0.00021817,2]
[313217521,1706965613354,156.0768596,0.00022418,2]
[313217522,1706965659499,221.16,0.00021784,2]
[313217523,1706965688455,172.18,0.00021764,2]
[313217524,1706965704311,150.0,0.00022495,2]
[313217525,1706965706048,19566.5,0.00021764,2]
[313217526,1706965804066,152.19,0.00019857,2]
[313217527,1706965804295,2009.29,0.000224,2]
[313217552,1706965831630,-917.62,0.00022504,2]
[313217555,1706965831641,-759.8606458,0.00022504,2]
[313217556,1706965831653,-140.5487213,0.00022504,2]
[313217557,1706965831662,-109.4512787,0.00022505,2]
[313217558,1706965831673,-357.50260618,0.00022505,2]
[313217559,1706965831685,-2464.18460252,0.00022505,2]
[313217560,1706965831697,-4012.81481841,0.00022505,2]
[313217561,1706965831717,-6446.81740078,0.00022505,2]
[313217562,1706965831728,-1721.9738624,0.00022505,2]
[313217563,1706965831749,-9313.0440907,0.00022505,2]
[313217564,1706965831759,-5462.05392872,0.00022506,2]
[313217565,1706965831768,-150.0,0.0002251,2]
[313217566,1706965831777,-150.0,0.0002251,2]
[313217567,1706965831786,-156.07685958,0.00022573,2]
[313217568,1706965831795,-165.91643015,0.00022585,2]
[313217569,1706965831804,-213.72159227,0.00022585,2]
[313217570,1706965831813,-6678.84830295,0.000226,2]
[313217571,1706965831825,-3208.00515943,0.000226,2]
[313217572,1706965831836,-849.08324174,0.000226,2]
[313217573,1706965831852,-496.09088179,0.000226,2]
[313217574,1706965831862,-1277.71899371,0.00022642,2]
[313217575,1706965831870,-21.4501245,0.00022643,2]
[313217576,1706965831882,-567.0516138,0.00022643,2]
[313217577,1706965831893,-127.8282617,0.00022643,2]
[313217578,1706965831903,-271.3740394,0.00022643,2]
[313217580,1706965831914,-558.52308031,0.00022643,2]
[313217583,1706965831926,-576.32490571,0.00022643,2]
[313217586,1706965831937,-759.14860217,0.00022643,2]
[313217591,1706965831949,-490.98955582,0.00022643,2]
[313217594,1706965831960,-1279.78270883,0.00022643,2]
[313217631,1706965837643,-4128.09305161,0.00022643,2]
[313217632,1706965837699,-8077.13327608,0.00022643,2]
[313217633,1706965837711,-14148.92626241,0.00022643,2]
[313217634,1706965837807,-21579.57300001,0.00022643,2]
[313217635,1706965837819,-58479.98245758,0.00022643,2]
[313217636,1706965837863,-9703.47,0.00022643,2]
[313217652,1706965840256,-1005.96464142,0.00022643,2]
[313217653,1706965840958,-9190.40564684,0.00022643,2]
[313217654,1706965840967,-155.0,0.00022654,2]
[313217655,1706965840976,-500.0,0.00022682,2]
[313217656,1706965840986,-729.65,0.00022682,2]
[313217657,1706965840995,-330.07736175,0.00022682,2]
[313217658,1706965841004,-500.0,0.00022682,2]
[313217659,1706965841012,-543.53,0.00022682,2]
[313217660,1706965841022,-500.0,0.00022682,2]
[313217661,1706965841031,-500.0,0.00022682,2]
[313217662,1706965841040,-164.65451484,0.00022682,2]
[313217663,1706965841049,-500.0,0.00022682,2]